bitfinex/quotes_ETHUSD_20230403
["timestamp","ask_amount","ask_price","bid_price","bid_amount"]
[1680539789109,5.79981724,1796.1,1795.6,0.83195287]
[1680539793712,5.79981724,1796.1,1795.8,0.27842]
[1680539794875,3.03379506,1796.1,1795.8,0.83527]
[1680539795044,3.03179506,1796.1,1795.8,0.83527]
[1680539795342,0.03179506,1796.1,1795.8,0.83527]
[1680539797174,0.009,1796.1,1795.8,0.83527]
[1680539797598,3.10388001,1796.3,1795.8,0.83527]
[1680539797599,0.009,1796.2,1795.8,0.83527]
[1680539799016,3.11088001,1796.3,1795.8,0.83527]
[1680539799313,0.11088001,1796.3,1795.8,0.83527]
[1680539800914,0.10188001,1796.3,1795.8,0.83527]
[1680539801361,0.10188001,1796.3,1795.8,6.68627]
[1680539801568,0.10188001,1796.3,1795.9,0.23]
[1680539801744,0.10188001,1796.3,1796.0,3.18674]
[1680539806574,0.10188001,1796.3,1796.0,1.94874]
[1680539808434,0.10188001,1796.3,1796.1,0.52429026]
[1680539808781,0.10188001,1796.3,1796.2,0.27836]
[1680539813049,0.09938519,1796.3,1796.2,0.27836]
[1680539822565,0.09938519,1796.3,1796.2,0.27836]
[1680539823522,0.09938519,1796.3,1796.2,0.80240203]
[1680539828190,0.09938519,1796.3,1796.2,0.52404203]
[1680539829968,0.09938519,1796.3,1796.2,0.80240203]
[1680539830430,0.09938519,1796.3,1796.2,0.52404203]
[1680539831424,0.09938519,1796.3,1796.2,0.80240203]
[1680539831996,0.09938519,1796.3,1796.2,0.52404203]
[1680539832146,2.86540737,1796.3,1796.2,0.52404203]
[1680539832475,3.80674811,1796.3,1795.8,0.56284]
[1680539832675,2.76602218,1796.2,1795.8,0.83525]
[1680539833579,2.76602218,1796.2,1795.9,0.36550721]
[1680539833770,2.76602218,1796.2,1795.9,0.64390721]
[1680539833963,0.27660222,1796.1,1795.9,0.64390721]
[1680539834662,0.27660222,1796.1,1795.9,0.36550721]
[1680539835401,0.27660222,1796.1,1795.9,0.64391721]
[1680539835585,0.27660222,1796.1,1795.9,0.36550721]
[1680539838460,0.27660222,1796.1,1795.7,0.28443]
[1680539839097,0.27660222,1796.1,1795.7,0.27843]
[1680539839403,0.27660222,1796.1,1795.8,0.36888923]
[1680539842393,0.27660222,1796.1,1795.8,0.64730923]
[1680539842981,0.27660222,1796.1,1795.8,0.36888923]
[1680539845511,0.27660222,1796.1,1795.7,0.27844]
[1680539848341,4.00702218,1796.2,1795.7,0.27844]
[1680539851432,4.00702218,1796.2,1795.7,0.83532]
[1680539852936,0.11038519,1796.3,1795.7,2.00020823]
[1680539853114,3.09938519,1796.3,1795.7,2.00020823]
[1680539853440,3.09938519,1796.3,1795.9,1.241]
[1680539853648,0.09938519,1796.3,1796.0,1.94874]
[1680539854358,0.09650659,1796.3,1796.0,1.94874]
[1680539856548,0.09650659,1796.3,1796.0,1.95474]
[1680539858467,0.37485659,1796.3,1796.0,0.006]
[1680539858756,0.09650659,1796.3,1796.0,0.002]
[1680539858918,0.37485659,1796.3,1796.0,0.006]
[1680539859103,0.09650659,1796.3,1796.0,0.006]
[1680539859306,0.48966125,1796.3,1795.9,4.9963]
[1680539859518,0.48966125,1796.3,1795.9,4.9943]
[1680539859752,0.48966125,1796.3,1795.9,5.2727]
[1680539860049,0.09650659,1796.3,1795.9,5.83152]
[1680539863334,0.09650659,1796.3,1795.9,5.82281988]
[1680539864060,0.09650659,1796.3,1795.9,5.26599988]
[1680539865971,1.61585659,1796.3,1795.9,4.98759988]
[1680539866171,0.16158566,1796.2,1795.8,9.65721439]
[1680539867166,2.92760784,1796.2,1795.8,0.37291439]
[1680539867469,2.93660784,1796.2,1795.8,0.37091439]
[1680539867677,0.29366078,1796.1,1795.8,0.37091439]
[1680539871626,0.19338072,1796.2,1795.8,0.37091439]
[1680539871827,3.009,1796.2,1795.8,1.20618439]
[1680539877538,8.63981724,1796.1,1795.8,0.37091439]
[1680539877761,7.086,1795.9,1795.8,0.37091439]
[1680539877955,10.13243218,1795.9,1795.8,0.37091439]
[1680539878260,12.88581724,1795.9,1795.8,0.37091439]
[1680539878454,13.16422724,1795.9,1795.3,1.44338823]
[1680539878760,5.76602218,1795.8,1795.3,1.44338823]
[1680539879076,0.57660222,1795.7,1795.3,1.44338823]
[1680539879398,3.3426244,1795.7,1795.4,0.32441916]
[1680539882101,2.76602218,1795.6,1795.4,0.32441916]
[1680539882304,7.36547,1795.5,1795.4,0.32441916]
[1680539882513,15.8264714,1795.5,1795.1,0.1]
[1680539882713,1.235,1795.3,1795.1,0.1]
[1680539882923,3.04454218,1795.2,1795.1,0.1]
[1680539883208,6.04454218,1795.2,1795.1,0.1]
[1680539883379,7.1378784,1795.2,1795.1,0.1]
[1680539883581,7.1378784,1795.2,1795.1,0.37636152]
[1680539884371,3.002,1795.2,1795.1,0.37636152]
[1680539884700,3.0,1795.2,1795.1,0.37636152]
[1680539884877,0.011,1795.3,1795.1,1.21195152]
[1680539885092,0.009,1795.5,1795.1,1.21195152]
[1680539885412,2.77502218,1795.6,1795.1,1.21195152]
[1680539886305,2.76602218,1795.6,1795.1,1.21195152]
[1680539887005,2.76357165,1795.6,1795.1,1.21795152]
[1680539895869,12.27549506,1795.7,1795.1,1.21795152]
[1680539895870,3.002,1795.7,1795.1,1.21795152]
[1680539895993,3.0,1795.7,1795.3,1.241]
[1680539896328,0.002,1795.9,1795.4,1.94939]
[1680539896557,2.76602218,1795.9,1795.4,11.48239]
[1680539896718,2.76602218,1795.9,1795.4,11.49039]
[1680539898431,2.77502218,1795.9,1795.5,0.27251022]
[1680539898587,0.009,1795.9,1795.6,0.27845]
[1680539898792,3.009,1796.0,1795.6,0.83536]
[1680539906269,0.009,1796.0,1795.7,1.239]
[1680539906565,0.009,1796.1,1795.8,0.27842]
[1680539906803,0.009,1796.1,1795.8,0.83527]
[1680539907304,0.009,1796.2,1795.8,0.83527]
[1680539907449,3.009,1796.2,1795.8,0.83527]
[1680539908556,0.009,1796.2,1795.8,0.83527]
[1680539910271,0.003,1796.2,1795.8,0.83527]
[1680539910480,29.93750659,1796.3,1795.8,9.45229218]
[1680539910818,0.10750659,1796.3,1796.2,7.092]
[1680539911022,0.09650659,1796.3,1796.2,12.03857218]
[1680539911170,0.09650659,1796.3,1796.2,26.33907218]
[1680539911361,0.09650659,1796.3,1796.2,27.45507218]
[1680539911696,0.09650659,1796.3,1796.2,30.45507218]
[1680539911880,0.09650659,1796.3,1796.2,31.69607218]
[1680539912084,0.03750659,1796.3,1796.2,31.69607218]
[1680539912923,6.59e-06,1796.3,1796.2,31.69607218]
[1680539913225,0.11000001,1796.9,1796.4,5.851]
[1680539913520,0.11000001,1796.9,1796.8,7.79889]
[1680539913722,0.11000001,1796.9,1796.8,8.03089]
[1680539915286,0.11000001,1796.9,1796.8,10.50089]
[1680539916528,0.11000001,1796.9,1796.8,3.41889]
[1680539916671,0.11000001,1796.9,1796.8,3.41689]
[1680539919024,0.11000001,1796.9,1796.8,9.26789]
[1680539919171,0.11000001,1796.9,1796.8,9.26989]
[1680539926936,0.11000001,1796.9,1796.8,13.27691218]
[1680539927486,0.11000001,1796.9,1796.8,14.03265884]
[1680539930986,0.11000001,1796.9,1796.8,18.03265884]
[1680539932325,0.11000001,1796.9,1796.8,18.59799554]
[1680539932838,0.11000001,1796.9,1796.8,19.71106452]
[1680539936338,0.11000001,1796.9,1796.8,19.48106452]
[1680539937834,0.11000001,1796.9,1796.8,19.71106452]
[1680539943159,0.11000001,1796.9,1796.8,25.29506452]
[1680539944585,0.11000001,1796.9,1796.8,18.95531786]
[1680539945642,0.11000001,1796.9,1796.8,12.47929568]
[1680539945957,0.11000001,1796.9,1796.8,12.36329568]
[1680539946969,0.11000001,1796.9,1796.8,12.59329568]
[1680539947288,0.11000001,1796.9,1796.8,8.59329568]
[1680539947594,0.11000001,1796.9,1796.8,8.02795898]
[1680539948894,0.11000001,1796.9,1796.8,2.17695898]
[1680539949197,0.11000001,1796.9,1796.8,8.02595898]
[1680539949348,0.11000001,1796.9,1796.8,8.03089]
[1680539953398,0.11000001,1796.9,1796.8,18.38491218]
[1680539953905,0.11000001,1797.2,1797.1,6.851]
[1680539954079,0.11000001,1797.2,1797.1,24.38237218]
[1680539954269,0.11000001,1797.2,1797.1,25.49637218]
[1680539957304,0.11000001,1797.3,1797.1,26.73737218]
[1680539957600,0.11000001,1797.3,1797.2,15.44302218]
[1680539957758,0.11000001,1797.3,1797.2,16.27965218]
[1680539957961,0.11000001,1797.3,1797.2,15.03865218]
[1680539958262,0.11000001,1797.3,1797.2,16.03865218]
[1680539958569,0.11000001,1797.3,1797.2,25.21195218]
[1680539959420,0.11000001,1797.3,1797.2,22.97095218]
[1680539959632,0.11000001,1797.3,1797.2,18.85695218]
[1680539964036,0.11000001,1797.3,1797.2,21.20995218]
[1680539966436,0.11000001,1797.3,1797.2,22.45095218]
[1680539966736,0.11000001,1797.3,1797.2,25.45095218]
[1680539968062,0.11000001,1797.7,1797.4,1.0]
[1680539968271,0.00841503,1797.7,1797.6,6.851]
[1680539968422,0.00841503,1797.7,1797.6,14.04804218]
[1680539968621,0.00841503,1797.7,1797.6,18.39204218]
[1680539969632,0.00841503,1797.7,1797.6,28.29394218]
[1680539970721,0.00841503,1797.7,1797.6,7.80002]
[1680539970959,0.00841503,1797.7,1797.6,1.94902]
[1680539971146,0.00841503,1797.7,1797.6,7.79802]
[1680539971330,0.00841503,1797.7,1797.6,7.80002]
[1680539971539,0.00841503,1797.7,1797.6,6.68743]
[1680539972289,0.00841503,1797.7,1797.6,6.91743]
[1680539972462,0.00841503,1797.7,1797.6,9.68345218]
[1680539975264,0.00841503,1797.7,1797.6,9.12716218]
[1680539976491,0.00841503,1797.7,1797.6,6.36114]
[1680539976697,1.24941503,1797.7,1797.6,0.002]
[1680539976994,1.24941503,1797.7,1797.5,0.27816]
[1680539977148,0.00841503,1797.7,1797.5,0.27816]
[1680539977353,0.00841503,1797.7,1797.5,0.83448]
[1680539977553,0.01741503,1797.7,1797.5,0.83448]
[1680539983784,0.01741503,1797.7,1797.4,0.002]
[1680539983982,0.01741503,1797.7,1797.4,0.27817]
[1680539984185,0.25425653,1797.7,1797.4,0.27817]
[1680539985467,0.25425653,1797.7,1797.4,0.83452]
[1680539990499,0.01741503,1797.7,1797.4,6.68552]
[1680539990812,0.01741503,1797.7,1797.4,6.68752]
[1680539993314,0.00841503,1797.7,1797.4,6.68752]
[1680539993811,0.01741503,1797.7,1797.4,6.68752]
[1680539995719,0.01741503,1797.7,1797.4,0.28017]
[1680539995913,1.39153604,1797.7,1797.4,0.27817]
[1680539999631,0.15653604,1797.7,1797.4,0.83452]
[1680540001616,0.01741503,1797.7,1797.4,0.83452]
[1680540002229,0.01741503,1797.7,1797.4,6.68552]
[1680540002448,0.01741503,1797.7,1797.4,6.68752]
[1680540002962,0.01741503,1797.7,1797.5,0.23]
[1680540003168,0.00585922,1797.7,1797.6,1.94702]
[1680540003455,0.00585922,1797.7,1797.6,10.79404218]
[1680540003629,0.00585922,1797.7,1797.6,10.79604218]
[1680540003952,0.00585922,1797.7,1797.6,10.80204218]
[1680540005158,1.00585922,1797.7,1797.6,0.28614]
[1680540005460,1.1402402,1797.7,1797.6,0.002]
[1680540005612,1.02865428,1797.7,1797.4,0.28416]
[1680540006018,1.02865428,1797.7,1797.4,0.27816]
[1680540006218,1.02865428,1797.7,1797.4,6.12916]
[1680540006444,1.02865428,1797.7,1797.4,6.13716]
[1680540010345,1.02865428,1797.7,1797.4,0.008]
[1680540010551,1.02865428,1797.7,1797.3,0.27819]
[1680540010747,2.235,1797.5,1797.1,0.006]
[1680540010977,2.235,1797.5,1797.1,0.27822]
[1680540011183,1.0,1797.5,1797.2,2.76602218]
[1680540011336,1.0,1797.5,1797.2,3.05021218]
[1680540011537,1.0,1797.5,1797.3,5.851]
[1680540011842,1.0,1797.5,1797.3,5.859]
[1680540012153,1.0,1797.5,1797.3,0.008]
[1680540012369,1.0,1797.5,1797.2,0.2782]
[1680540012681,1.0,1797.5,1797.2,0.27819]
[1680540013938,1.0,1797.5,1797.2,0.83461]
[1680540014769,1.0,1797.5,1797.2,0.92861]
[1680540016003,1.0,1797.5,1797.2,0.93461]
[1680540016310,9.3689,1797.6,1797.2,0.93461]
[1680540017393,0.002,1797.6,1797.2,9.55163218]
[1680540017571,9.47209506,1797.7,1797.4,1.94722]
[1680540017778,0.02479506,1797.7,1797.4,1.94722]
[1680540017974,0.02279506,1797.7,1797.4,1.94722]
[1680540024908,0.02279506,1797.7,1797.4,7.79822]
[1680540025113,1.58092361,1797.8,1797.6,0.27814]
[1680540025864,1.0,1797.8,1797.6,0.27814]
[1680540026118,1.0,1797.8,1797.6,0.83443]
[1680540026414,1.58092361,1797.8,1797.6,0.83443]
[1680540026580,1.0,1797.8,1797.6,0.83443]
[1680540028938,1.0,1797.6,1797.5,0.008]
[1680540029220,2.09403361,1797.8,1797.4,1.51040494]
[1680540029419,5.53035786,1797.8,1797.4,1.51040494]
[1680540029567,0.96585065,1797.7,1797.4,1.51040494]
[1680540029773,3.96585065,1797.7,1797.4,1.51040494]
[1680540029975,3.0,1797.7,1797.4,1.51040494]
[1680540030195,5.17047157,1797.8,1797.4,1.51040494]
[1680540030401,0.96585292,1797.7,1797.4,1.51040494]
[1680540030597,3.96585292,1797.7,1797.4,1.78857494]
[1680540030811,3.0,1797.7,1797.5,2.80289004]
[1680540030983,3.59192361,1797.8,1797.5,3.08105004]
[1680540031307,3.58992361,1797.8,1797.6,2.80273412]
[1680540032712,3.61271867,1797.8,1797.7,0.56622055]
[1680540032881,4.57856648,1797.8,1797.7,0.56622055]
[1680540033064,5.45168019,1797.8,1797.7,0.56622055]
[1680540033265,5.45368019,1797.8,1797.7,0.56622055]
[1680540033508,4.58056648,1797.8,1797.7,0.56622055]
[1680540033712,4.57856648,1797.8,1797.7,0.56622055]
[1680540034275,4.56956648,1797.8,1797.7,0.56622055]
[1680540035206,4.57856648,1797.8,1797.7,0.56622055]
[1680540036677,4.85667648,1797.8,1797.7,0.56622055]
[1680540036971,5.66997502,1797.8,1797.7,0.56622055]
[1680540037173,5.67197502,1797.8,1797.7,0.56622055]
[1680540038343,5.39386502,1797.8,1797.7,0.56622055]
[1680540038695,6.54508873,1797.8,1797.7,0.56622055]
[1680540040722,6.26697873,1797.8,1797.7,0.56622055]
[1680540040917,6.54508873,1797.8,1797.7,0.56622055]
[1680540042057,6.26697873,1797.8,1797.7,0.56622055]
[1680540042721,6.54508873,1797.8,1797.7,0.56622055]
[1680540043116,6.26697873,1797.8,1797.7,0.56622055]
[1680540045418,2.33282073,1797.8,1797.7,0.56622055]
[1680540045605,2.32182073,1797.8,1797.7,0.56622055]
[1680540046621,1.50852219,1797.8,1797.7,0.56622055]
[1680540047928,4.50852219,1797.8,1797.7,0.56622055]
[1680540050237,5.34286219,1797.8,1797.7,0.56622055]
[1680540050421,5.34486219,1797.8,1797.7,0.56622055]
[1680540050737,4.78863219,1797.8,1797.7,0.56622055]
[1680540051044,5.56213493,1797.8,1797.7,0.56622055]
[1680540051197,6.73033011,1797.8,1797.7,0.56622055]
[1680540052053,7.96533011,1797.8,1797.7,0.56622055]
[1680540052544,7.0922164,1797.8,1797.7,0.56622055]
[1680540052850,7.96750373,1797.8,1797.7,0.56622055]
[1680540053145,7.0922164,1797.8,1797.7,0.56622055]
[1680540053331,6.8141064,1797.8,1797.7,0.56622055]
[1680540057511,5.5791064,1797.8,1797.7,0.56622055]
[1680540062166,6.45465547,1797.8,1797.7,0.56622055]
[1680540062725,6.73276547,1797.8,1797.7,0.56622055]
[1680540064242,5.56657029,1797.8,1797.7,0.56622055]
[1680540065535,6.12280029,1797.8,1797.7,0.56622055]
[1680540067676,6.13180029,1797.8,1797.7,0.56622055]
[1680540067982,6.12280029,1797.8,1797.7,0.56622055]
[1680540068364,5.56657029,1797.8,1797.7,0.56622055]
[1680540070985,5.57557029,1797.8,1797.7,0.56622055]
[1680540071587,5.56657029,1797.8,1797.7,0.56622055]
[1680540072666,6.73276547,1797.8,1797.7,0.56622055]
[1680540072862,10.05501765,1797.8,1797.7,0.56622055]
[1680540073259,9.18846858,1797.8,1797.7,0.56266231]
[1680540074200,16.15193858,1797.8,1797.7,0.56266231]
[1680540074382,19.97424184,1797.8,1797.7,0.56266231]
[1680540074749,21.41393502,1797.8,1797.6,2.78580662]
[1680540075088,17.15327203,1797.7,1797.6,2.78580662]
[1680540075270,17.15527203,1797.7,1797.6,2.78580662]
[1680540075593,20.15527203,1797.7,1797.6,2.78580662]
[1680540076467,21.3220861,1797.7,1797.6,2.78580662]
[1680540077255,18.9400861,1797.7,1797.6,2.78580662]
[1680540077455,19.99727203,1797.7,1797.6,2.78580662]
[1680540078013,27.99727203,1797.7,1797.6,2.78580662]
[1680540078192,29.44596521,1797.7,1797.6,2.78580662]
[1680540079102,29.45196521,1797.7,1797.6,2.78580662]
[1680540079307,29.45496521,1797.7,1797.6,2.78580662]
[1680540079510,27.23096521,1797.7,1797.6,2.78580662]
[1680540080508,28.39716477,1797.7,1797.6,2.78580662]
[1680540080862,28.39716477,1797.7,1797.3,0.008]
[1680540081096,0.5830995,1797.5,1797.0,4.7452]
[1680540081302,0.27818,1797.4,1797.0,4.7452]
[1680540081477,3.27818,1797.4,1797.0,4.7452]
[1680540083810,3.0,1797.4,1797.0,4.7452]
[1680540084010,3.27817,1797.4,1797.0,4.76789038]
[1680540084214,3.0,1797.4,1797.0,4.76789038]
[1680540084568,3.27818,1797.4,1797.0,4.76789038]
[1680540087871,6.04420218,1797.4,1797.0,4.76189038]
[1680540088062,6.05520218,1797.4,1797.0,4.76189038]
[1680540088281,6.77466435,1797.4,1797.0,4.7392]
[1680540088683,6.76566435,1797.4,1797.0,4.7452]
[1680540090808,6.77466435,1797.4,1797.0,4.7392]
[1680540091198,6.77466435,1797.4,1797.0,4.7452]
[1680540091199,6.76566435,1797.4,1797.0,4.7452]
[1680540092419,6.04620218,1797.4,1797.0,4.7452]
[1680540092814,5.76802218,1797.4,1797.0,4.7452]
[1680540093717,5.77702218,1797.4,1797.1,0.59136603]
[1680540094515,3.002,1797.4,1797.1,0.87558603]
[1680540094723,3.0,1797.3,1797.1,0.87558603]
[1680540095039,0.002,1797.4,1797.1,0.87558603]
[1680540095366,3.5850995,1797.6,1797.1,0.86958603]
[1680540095548,6.34912168,1797.6,1797.1,0.86958603]
[1680540095756,6.62926168,1797.6,1797.1,0.86958603]
[1680540095931,8.07795486,1797.6,1797.1,0.86958603]
[1680540096250,7.79981486,1797.6,1797.1,0.86958603]
[1680540096461,6.35112168,1797.6,1797.1,0.86958603]
[1680540096633,6.34723105,1797.6,1797.1,0.87158603]
[1680540096839,6.34723105,1797.6,1797.1,0.87558603]
[1680540098471,6.34723105,1797.6,1797.1,1.43203603]
[1680540101173,6.34723105,1797.6,1797.1,2.43203603]
[1680540101964,6.34723105,1797.6,1797.1,2.45472514]
[1680540102310,3.002,1797.6,1797.4,1.236]
[1680540102471,3.0,1797.6,1797.4,1.51416]
[1680540102769,0.002,1797.8,1797.4,1.51416]
[1680540102954,0.96585312,1797.8,1797.4,1.51416]
[1680540103267,0.96585312,1797.8,1797.4,1.52016]
[1680540103478,3.49161442,1797.9,1797.4,1.52016]
[1680540103620,0.96583713,1797.8,1797.4,1.52016]
[1680540103828,0.96583713,1797.8,1797.4,2.07651]
[1680540104156,5.09143704,1797.9,1797.6,0.27814]
[1680540104320,4.21678778,1797.9,1797.6,0.27814]
[1680540104525,2.76602218,1797.9,1797.6,0.27814]
[1680540104753,3.0,1797.8,1797.6,0.27814]
[1680540104973,0.002,1797.9,1797.6,0.27814]
[1680540105172,0.96579929,1797.9,1797.6,0.27814]
[1680540105587,3.96579929,1797.9,1797.7,0.58977611]
[1680540105742,3.0,1797.9,1797.7,0.58977611]
[1680540106343,2.76602218,1797.8,1797.7,0.58977611]
[1680540106676,0.8344,1797.7,1797.4,0.006]
[1680540106833,0.58279053,1797.6,1797.4,0.006]
[1680540107035,0.27816,1797.5,1797.3,0.006]
[1680540107255,5.319565,1797.6,1797.3,0.006]
[1680540107534,5.321565,1797.6,1797.3,0.006]
[1680540108363,5.31887867,1797.6,1797.2,1.006]
[1680540108559,5.31887867,1797.6,1797.4,0.59143542]
[1680540108735,4.76258867,1797.6,1797.4,0.59143542]
[1680540109069,4.76058867,1797.6,1797.4,0.59143542]
[1680540109478,4.76058867,1797.6,1797.2,1.006]
[1680540110090,8.76339929,1797.6,1797.2,0.006]
[1680540110275,0.47605887,1797.5,1797.2,0.006]
[1680540110483,0.27817,1797.4,1797.3,0.59174456]
[1680540111720,4.43472731,1797.5,1797.3,0.59174456]
[1680540113722,3.75422887,1797.5,1797.3,0.59174456]
[1680540115527,3.75422887,1797.5,1797.2,0.006]
[1680540117930,3.75422887,1797.5,1797.2,0.004]
[1680540118128,3.75422887,1797.5,1797.1,15.6529]
[1680540118436,4.33739224,1797.5,1797.1,15.6529]
[1680540119233,4.33739224,1797.5,1797.1,15.6589]
[1680540120845,3.58316337,1797.5,1797.1,15.95980911]
[1680540121136,3.58316337,1797.5,1797.1,16.51625911]
[1680540121946,3.0,1797.5,1797.1,25.13328129]
[1680540122148,3.58516337,1797.6,1797.3,1.239]
[1680540122445,0.58316337,1797.6,1797.3,1.239]
[1680540122598,1.54907873,1797.6,1797.3,1.239]
[1680540122798,4.54907873,1797.6,1797.3,1.239]
[1680540122998,3.58316337,1797.6,1797.3,1.51719]
[1680540123201,0.58316337,1797.6,1797.3,2.51719]
[1680540123441,1.54907116,1797.6,1797.3,2.51719]
[1680540123605,1.54907116,1797.6,1797.4,0.48704457]
[1680540124189,1.54907116,1797.6,1797.5,1.0]
[1680540124397,0.002,1797.7,1797.5,1.27816]
[1680540124595,1.5489808,1797.8,1797.6,1.237]
[1680540124884,0.58516337,1797.9,1797.7,1.27812]
[1680540124994,0.58316337,1797.9,1797.7,1.0]
[1680540125202,1.56734917,1798.0,1797.7,1.27813]
[1680540125396,0.96575282,1797.9,1797.7,1.27813]
[1680540125628,1.56734917,1798.0,1797.7,1.27813]
[1680540125836,0.96575236,1797.9,1797.7,1.27813]
[1680540125994,1.56734917,1798.0,1797.7,1.27813]
[1680540126344,0.96575533,1797.9,1797.7,1.0]
[1680540126543,4.56734917,1798.0,1797.7,1.0]
[1680540126544,4.56934917,1798.0,1797.7,1.0]
[1680540126702,1.54891829,1797.9,1797.7,1.0]
[1680540126907,3.69516338,1798.0,1797.7,1.0]
[1680540127243,4.6248283,1798.0,1797.7,1.0]
[1680540127477,12.23128836,1797.9,1797.5,0.002]
[1680540127596,12.23128836,1797.9,1797.4,0.48704457]
[1680540127597,0.83443,1797.6,1797.4,0.48704457]
[1680540127946,4.18318043,1797.6,1797.4,0.48704457]
[1680540128111,3.0,1797.5,1797.4,0.48704457]
[1680540128460,3.27816,1797.5,1797.4,0.48704457]
[1680540128592,8.86775538,1797.5,1797.2,0.006]
[1680540128919,0.83458,1797.3,1797.0,1.008]
[1680540129120,3.63825022,1797.3,1797.0,1.006]
[1680540129320,3.27819,1797.3,1797.0,1.006]
[1680540129525,3.83458,1797.3,1797.0,1.006]
[1680540129713,3.83458,1797.3,1797.1,0.51239574]
[1680540130034,4.55311304,1797.3,1797.1,0.51239574]
[1680540130611,7.31913522,1797.3,1797.1,0.51239574]
[1680540130818,3.60065218,1797.2,1797.1,0.51239574]
[1680540131200,6.60065218,1797.2,1797.1,0.51239574]
[1680540131540,6.60265218,1797.2,1796.9,1.006]
[1680540131714,3.93829522,1797.1,1796.9,1.0]
[1680540132653,3.93431515,1797.1,1796.9,1.0]
[1680540134046,3.65608515,1797.1,1796.9,1.0]
[1680540134589,3.0,1797.1,1796.9,1.0]
[1680540135154,5.76602218,1797.1,1796.9,1.0]
[1680540135341,6.05525218,1797.1,1796.9,1.0]
[1680540136002,6.04625218,1797.1,1796.9,1.0]
[1680540136552,2.76602218,1797.0,1796.7,0.006]
[1680540136741,2.76602218,1797.0,1796.6,3.89335722]
[1680540136742,3.27825,1796.9,1796.6,3.89335722]
[1680540137152,6.60078218,1796.9,1796.6,3.89335722]
[1680540137376,0.66007822,1796.8,1796.6,3.89335722]
[1680540137544,0.27828,1796.7,1796.6,3.89335722]
[1680540138083,0.93835822,1796.8,1796.6,3.89335722]
[1680540138589,0.93835822,1796.8,1796.6,4.44264364]
[1680540138893,0.09383582,1796.7,1796.6,4.43664364]
[1680540139112,0.37211582,1796.7,1796.6,4.43664364]
[1680540139287,0.37211582,1796.7,1796.6,4.44264364]
[1680540140754,0.27828,1796.7,1796.6,4.44264364]
[1680540143669,0.83485,1796.7,1796.6,4.44264364]
[1680540144217,0.83485,1796.7,1796.6,1.65528642]
[1680540144423,0.83485,1796.7,1796.6,1.64928642]
[1680540144712,9.45187218,1796.7,1796.6,0.64928642]
[1680540145008,13.57638022,1796.7,1796.6,0.64928642]
[1680540146188,14.80438022,1796.7,1796.6,0.64928642]
[1680540146389,17.03038022,1796.7,1796.6,0.64928642]
[1680540146586,17.03038022,1796.7,1796.6,0.1]
[1680540152169,15.80238022,1796.7,1796.6,0.1]
[1680540152369,16.36741319,1796.7,1796.6,0.1]
[1680540154463,17.59841319,1796.7,1796.6,0.1]
[1680540154777,0.03352397,1796.5,1796.4,0.1]
[1680540154984,10.59875615,1796.5,1796.4,0.1]
[1680540155281,13.60075615,1796.5,1796.4,0.1]
[1680540158230,15.82675615,1796.5,1796.4,0.1]
[1680540161883,15.83575615,1796.5,1796.4,0.1]
[1680540162091,11.0332549,1796.5,1796.4,0.1]
[1680540163584,11.0242549,1796.5,1796.4,0.1]
[1680540177441,11.0242549,1796.5,1796.4,0.1]
[1680540177636,11.0242549,1796.5,1796.4,0.09601071]
[1680540180787,12.57356637,1796.5,1796.4,0.09601071]
[1680540183944,12.58256637,1796.5,1796.4,0.09601071]
[1680540185099,12.57356637,1796.5,1796.4,0.09601071]
[1680540185641,21.06029391,1796.5,1796.4,0.09601071]
[1680540185840,21.35230768,1796.5,1796.4,0.09601071]
[1680540186045,22.81133487,1796.5,1796.4,0.09601071]
[1680540186814,21.64513531,1796.5,1796.4,0.09601071]
[1680540187512,22.81064723,1796.5,1796.4,0.09601071]
[1680540188333,24.26053407,1796.5,1796.4,0.09601071]
[1680540188525,24.26353407,1796.5,1796.4,0.09601071]
[1680540188845,23.10402215,1796.5,1796.4,0.09601071]
[1680540189256,23.09502215,1796.5,1796.4,0.09601071]
[1680540189842,5.851,1796.1,1795.9,0.1]
[1680540190047,23.79503876,1796.0,1795.9,0.1]
[1680540190249,24.08107224,1796.0,1795.5,0.1]
[1680540190414,1.9493,1795.5,1795.3,1.1]
[1680540190611,7.71532218,1795.5,1795.3,1.1]
[1680540190916,7.71732218,1795.5,1795.3,1.1]
[1680540191120,6.04649218,1795.5,1795.3,1.1]
[1680540191373,6.60343218,1795.5,1795.3,1.1]
[1680540191551,6.60343218,1795.5,1795.4,0.3094841]
[1680540191871,7.8488754,1795.5,1795.4,0.3094841]
[1680540192225,7.8488754,1795.5,1795.0,0.002]
[1680540192226,13.7028754,1795.5,1795.0,0.002]
[1680540192467,5.851,1795.2,1795.0,0.002]
[1680540192623,12.45262218,1795.1,1795.0,1.0]
[1680540192837,6.04655218,1795.1,1795.0,1.0]
[1680540193043,6.60362218,1795.1,1795.0,1.0]
[1680540193241,7.8499844,1795.1,1795.0,1.0]
[1680540193489,7.8499844,1795.1,1795.0,1.28897177]
[1680540193673,7.8589844,1795.1,1795.0,1.28897177]
[1680540194242,3.011,1795.1,1795.0,1.28897177]
[1680540194477,3.011,1795.2,1795.0,2.51697177]
[1680540194679,0.009,1795.2,1795.1,1.236]
[1680540194849,0.2875,1795.3,1795.1,1.236]
[1680540195246,0.009,1795.3,1795.2,1.0]
[1680540195467,0.2785,1795.4,1795.2,1.0]
[1680540196393,0.83547,1795.4,1795.2,1.0]
[1680540196629,3.60149218,1795.4,1795.3,1.0]
[1680540196768,6.99493918,1795.4,1795.3,1.0]
[1680540196969,6.99693918,1795.4,1795.3,1.0]
[1680540197169,12.84793918,1795.4,1795.3,1.0]
[1680540198613,12.84793918,1795.4,1795.3,1.31785615]
[1680540200917,15.07593918,1795.4,1795.3,0.31785615]
[1680540201533,0.26247568,1795.2,1794.9,1.0]
[1680540201666,0.27855,1795.0,1794.9,1.0]
[1680540201863,3.04457218,1795.0,1794.9,1.0]
[1680540202099,6.04457218,1795.0,1794.9,1.0]
[1680540202296,6.04657218,1795.0,1794.9,1.0]
[1680540202508,6.04657218,1795.0,1794.9,1.27619297]
[1680540202918,3.28655,1795.0,1794.9,1.27619297]
[1680540203063,3.27855,1795.0,1794.9,1.27619297]
[1680540203263,6.72923418,1795.0,1794.9,1.27619297]
[1680540203469,13.13933418,1795.0,1794.9,0.27619297]